[Event "Open NK Rapid 2025"]
[Site "Helmond, Netherlands"]
[Date "2025.05.03"]
[Round "5.11"]
[White "Stolwijk, Colin"]
[Black "Cayonlu, Arda"]
[Result "1-0"]
[TimeControl "15+5"]
[WhiteFideId "1033743"]
[BlackFideId "6339786"]
[WhiteElo "2286"]
[BlackElo "1885"]

1. e4 {[%clk 00:15:08]} {[%emt 00:00:02]} e5 {[%clk 00:15:09]} {[%emt
00:00:02]} 2. Nf3 {[%clk 00:15:11]} {[%emt 00:00:01]} Nc6 {[%clk 00:15:13]}
{[%emt 00:00:02]} 3. Bc4 {[%clk 00:15:14]} {[%emt 00:00:02]} Bc5 {[%clk
00:15:13]} {[%emt 00:00:04]} 4. O-O {[%clk 00:15:04]} {[%emt 00:00:15]} d6
{[%clk 00:15:09]} {[%emt 00:00:10]} 5. c3 {[%clk 00:15:00]} {[%emt 00:00:09]}
Qf6 {[%clk 00:13:39]} {[%emt 00:01:34]} 6. b4 {[%clk 00:14:19]} {[%emt
00:00:46]} Bb6 {[%clk 00:13:41]} {[%emt 00:00:03]} 7. b5 {[%clk 00:14:22]}
{[%emt 00:00:02]} Nd8 {[%clk 00:13:17]} {[%emt 00:00:29]} 8. d4 {[%clk
00:13:53]} {[%emt 00:00:33]} Bg4 {[%clk 00:12:59]} {[%emt 00:00:24]} 9. dxe5
{[%clk 00:12:21]} {[%emt 00:01:37]} dxe5 {[%clk 00:12:40]} {[%emt 00:00:24]} 10.
Bg5 {[%clk 00:12:09]} {[%emt 00:00:17]} Qxg5 {[%clk 00:12:23]} {[%emt
00:00:22]} 11. Nxg5 {[%clk 00:12:12]} {[%emt 00:00:03]} Bxd1 {[%clk 00:12:25]}
{[%emt 00:00:02]} 12. Rxd1 {[%clk 00:12:12]} {[%emt 00:00:05]} f6 {[%clk
00:10:49]} {[%emt 00:01:42]} 13. Nf3 {[%clk 00:11:12]} {[%emt 00:01:05]} Nf7
{[%clk 00:09:55]} {[%emt 00:00:59]} 14. Nbd2 {[%clk 00:10:00]} {[%emt
00:01:16]} Nd6 {[%clk 00:09:44]} {[%emt 00:00:16]} 15. Be2 {[%clk 00:09:15]}
{[%emt 00:00:49]} Ne7 {[%clk 00:09:44]} {[%emt 00:00:06]} 16. a4 {[%clk
00:09:09]} {[%emt 00:00:11]} c6 {[%clk 00:08:47]} {[%emt 00:01:02]} 17. a5
{[%clk 00:08:52]} {[%emt 00:00:23]} Bc7 {[%clk 00:08:46]} {[%emt 00:00:04]} 18.
a6 {[%clk 00:08:55]} {[%emt 00:00:03]} b6 {[%clk 00:08:15]} {[%emt 00:00:36]}
19. bxc6 {[%clk 00:07:55]} {[%emt 00:01:05]} Nxc6 {[%clk 00:08:18]} {[%emt
00:00:02]} 20. Ne1 {[%clk 00:07:54]} {[%emt 00:00:06]} O-O {[%clk 00:07:56]}
{[%emt 00:00:27]} 21. Bg4 {[%clk 00:07:17]} {[%emt 00:00:42]} Rfd8 {[%clk
00:07:29]} {[%emt 00:00:32]} 22. Be6+ {[%clk 00:07:20]} {[%emt 00:00:03]} Kf8
{[%clk 00:07:32]} {[%emt 00:00:01]} 23. Bd5 {[%clk 00:06:58]} {[%emt 00:00:28]}
Na5 {[%clk 00:07:18]} {[%emt 00:00:18]} 24. Bxa8 {[%clk 00:06:57]} {[%emt
00:00:07]} Rxa8 {[%clk 00:07:22]} {[%emt 00:00:01]} 25. Nd3 {[%clk 00:06:36]}
{[%emt 00:00:25]} Rc8 {[%clk 00:06:57]} {[%emt 00:00:30]} 26. Nb4 {[%clk
00:06:33]} {[%emt 00:00:09]} Bd8 {[%clk 00:06:52]} {[%emt 00:00:09]} 27. Nd5
{[%clk 00:06:36]} {[%emt 00:00:01]} Nb5 {[%clk 00:05:30]} {[%emt 00:01:27]} 28.
Kf1 {[%clk 00:05:39]} {[%emt 00:01:03]} Nc7 {[%clk 00:05:03]} {[%emt 00:00:32]}
29. Nxc7 {[%clk 00:05:01]} {[%emt 00:00:43]} Bxc7 {[%clk 00:05:07]} {[%emt
00:00:02]} 30. Ke2 {[%clk 00:04:46]} {[%emt 00:00:19]} Ke7 {[%clk 00:05:10]}
{[%emt 00:00:02]} 31. f3 {[%clk 00:04:50]} Bd6 {[%clk 00:05:13]} {[%emt
00:00:02]} 32. Kd3 {[%clk 00:04:51]} {[%emt 00:00:04]} Rc6 {[%clk 00:04:38]}
{[%emt 00:00:40]} 33. Ra4 {[%clk 00:04:47]} {[%emt 00:00:09]} Bc7 {[%clk
00:04:36]} {[%emt 00:00:08]} 34. Kc2 {[%clk 00:04:24]} {[%emt 00:00:27]} b5
{[%clk 00:04:31]} {[%emt 00:00:11]} 35. Ra2 {[%clk 00:04:27]} {[%emt 00:00:01]}
b4 {[%clk 00:04:10]} {[%emt 00:00:26]} 36. c4 {[%clk 00:04:11]} {[%emt
00:00:22]} Bb6 {[%clk 00:03:56]} {[%emt 00:00:19]} 37. Rb1 {[%clk 00:03:52]}
{[%emt 00:00:23]} Nxc4 {[%clk 00:03:56]} {[%emt 00:00:05]} 38. Nxc4 {[%clk
00:03:45]} {[%emt 00:00:13]} Rxc4+ {[%clk 00:03:59]} 39. Kb3 {[%clk 00:03:37]}
{[%emt 00:00:12]} Rd4 {[%clk 00:04:03]} {[%emt 00:00:02]} 40. Rc2 {[%clk
00:03:32]} {[%emt 00:00:11]} g5 {[%clk 00:03:04]} {[%emt 00:01:04]} 41. Rc4
{[%clk 00:02:46]} {[%emt 00:00:51]} Rd3+ {[%clk 00:03:07]} {[%emt 00:00:02]} 42.
Kxb4 {[%clk 00:02:34]} {[%emt 00:00:16]} Rd2 {[%clk 00:03:11]} {[%emt
00:00:02]} 43. g4 {[%clk 00:02:36]} {[%emt 00:00:03]} Rxh2 {[%clk 00:03:11]}
{[%emt 00:00:04]} 44. Kb5 {[%clk 00:02:27]} {[%emt 00:00:13]} Ra2 {[%clk
00:02:37]} {[%emt 00:00:40]} 45. Rh1 {[%clk 00:02:13]} {[%emt 00:00:19]} Ra5+
{[%clk 00:02:24]} {[%emt 00:00:18]} 46. Kc6 {[%clk 00:02:16]} {[%emt 00:00:02]}
Rxa6 {[%clk 00:02:16]} {[%emt 00:00:13]} 47. Kb7 {[%clk 00:02:15]} {[%emt
00:00:06]} Ra3 {[%clk 00:01:48]} {[%emt 00:00:34]} 48. Rxh7 {[%clk 00:02:17]}
{[%emt 00:00:03]} 1-0

[Event "Open NK Rapid 2025"]
[Site "Helmond, Netherlands"]
[Date "2025.05.03"]
[Round "5.12"]
[White "Bok, Benjamin"]
[Black "Wolff, Christoph"]
[Result "1-0"]
[TimeControl "15+5"]
[WhiteFideId "1017063"]
[BlackFideId "4648706"]
[WhiteElo "2583"]
[BlackElo "1941"]

1. c4 {[%clk 00:15:08]} {[%emt 00:00:02]} e5 {[%clk 00:15:07]} {[%emt
00:00:02]} 2. g3 {[%clk 00:15:10]} {[%emt 00:00:03]} Nf6 {[%clk 00:15:09]}
{[%emt 00:00:03]} 3. Bg2 {[%clk 00:15:14]} {[%emt 00:00:02]} d5 {[%clk
00:15:03]} {[%emt 00:00:11]} 4. cxd5 {[%clk 00:15:18]} {[%emt 00:00:01]} Nxd5
{[%clk 00:15:07]} {[%emt 00:00:02]} 5. Nf3 {[%clk 00:15:21]} {[%emt 00:00:01]}
Nc6 {[%clk 00:15:02]} {[%emt 00:00:10]} 6. O-O {[%clk 00:15:24]} {[%emt
00:00:02]} Be7 {[%clk 00:15:04]} {[%emt 00:00:03]} 7. d4 {[%clk 00:14:55]}
{[%emt 00:00:34]} exd4 {[%clk 00:14:38]} {[%emt 00:00:30]} 8. Nxd4 {[%clk
00:14:59]} {[%emt 00:00:02]} Nxd4 {[%clk 00:14:27]} {[%emt 00:00:15]} 9. Qxd4
{[%clk 00:15:02]} {[%emt 00:00:03]} Nf6 {[%clk 00:14:24]} {[%emt 00:00:08]} 10.
Qa4+ {[%clk 00:14:41]} {[%emt 00:00:26]} c6 {[%clk 00:13:37]} {[%emt 00:00:51]}
11. Rd1 {[%clk 00:14:44]} {[%emt 00:00:03]} Qb6 {[%clk 00:13:27]} {[%emt
00:00:15]} 12. Na3 {[%clk 00:12:45]} {[%emt 00:02:04]} O-O {[%clk 00:12:52]}
{[%emt 00:00:40]} 13. Nc4 {[%clk 00:12:40]} {[%emt 00:00:10]} Qb4 {[%clk
00:12:21]} {[%emt 00:00:34]} 14. Qxb4 {[%clk 00:12:30]} {[%emt 00:00:16]} Bxb4
{[%clk 00:12:24]} {[%emt 00:00:03]} 15. a3 {[%clk 00:10:07]} {[%emt 00:02:28]}
Be7 {[%clk 00:11:17]} {[%emt 00:01:12]} 16. b4 {[%clk 00:09:30]} {[%emt
00:00:42]} Be6 {[%clk 00:10:52]} {[%emt 00:00:29]} 17. Na5 {[%clk 00:09:32]}
{[%emt 00:00:04]} Rad8 {[%clk 00:10:48]} {[%emt 00:00:09]} 18. Be3 {[%clk
00:09:31]} {[%emt 00:00:06]} Nd5 {[%clk 00:08:30]} {[%emt 00:02:23]} 19. Nxb7
{[%clk 00:09:16]} {[%emt 00:00:20]} Rb8 {[%clk 00:08:24]} {[%emt 00:00:11]} 20.
Bxd5 {[%clk 00:09:05]} {[%emt 00:00:16]} Bxd5 {[%clk 00:08:06]} {[%emt
00:00:22]} 21. Na5 {[%clk 00:09:09]} {[%emt 00:00:02]} Bf6 {[%clk 00:07:57]}
{[%emt 00:00:14]} 22. Bd4 {[%clk 00:08:57]} {[%emt 00:00:17]} Bd8 {[%clk
00:07:52]} {[%emt 00:00:10]} 23. Bxa7 {[%clk 00:04:37]} {[%emt 00:04:26]} Ra8
{[%clk 00:07:36]} {[%emt 00:00:21]} 24. Rxd5 {[%clk 00:03:51]} {[%emt
00:00:51]} cxd5 {[%clk 00:07:15]} {[%emt 00:00:26]} 25. Nc6 {[%clk 00:03:54]}
{[%emt 00:00:01]} Bf6 {[%clk 00:07:04]} {[%emt 00:00:16]} 26. Rb1 {[%clk
00:03:56]} {[%emt 00:00:04]} Rfc8 {[%clk 00:06:36]} {[%emt 00:00:31]} 27. b5
{[%clk 00:03:59]} {[%emt 00:00:03]} Rc7 {[%clk 00:05:16]} {[%emt 00:01:25]} 28.
b6 {[%clk 00:03:33]} {[%emt 00:00:31]} Rb7 {[%clk 00:03:58]} {[%emt 00:01:24]}
29. a4 {[%clk 00:03:17]} {[%emt 00:00:21]} h6 {[%clk 00:02:52]} {[%emt
00:01:10]} 30. a5 {[%clk 00:03:17]} {[%emt 00:00:05]} Bd8 {[%clk 00:02:16]}
{[%emt 00:00:41]} 31. Nxd8 {[%clk 00:02:47]} {[%emt 00:00:36]} Rxd8 {[%clk
00:02:19]} {[%emt 00:00:01]} 32. a6 {[%clk 00:02:50]} {[%emt 00:00:02]} 1-0

[Event "Open NK Rapid 2025"]
[Site "Helmond, Netherlands"]
[Date "2025.05.03"]
[Round "5.13"]
[White "Garay, Enzo"]
[Black "Cernov, Henrik"]
[Result "0-1"]
[TimeControl "15+5"]
[WhiteFideId "40104125"]
[BlackFideId "16258312"]
[WhiteElo "1933"]
[BlackElo "2291"]

1. d4 {[%clk 00:15:07]} {[%emt 00:00:02]} Nf6 {[%clk 00:15:09]} {[%emt
00:00:01]} 2. c4 {[%clk 00:15:11]} {[%emt 00:00:02]} Nc6 {[%clk 00:15:13]}
{[%emt 00:00:01]} 3. Nc3 {[%clk 00:15:05]} {[%emt 00:00:10]} e5 {[%clk
00:15:18]} 4. d5 {[%clk 00:15:08]} {[%emt 00:00:03]} Ne7 {[%clk 00:15:22]} 5.
e4 {[%clk 00:15:11]} {[%emt 00:00:02]} Ng6 {[%clk 00:15:26]} {[%emt 00:00:01]}
6. g3 {[%clk 00:15:10]} {[%emt 00:00:05]} Bc5 {[%clk 00:15:27]} {[%emt
00:00:05]} 7. Bg2 {[%clk 00:15:05]} {[%emt 00:00:10]} d6 {[%clk 00:15:23]}
{[%emt 00:00:09]} 8. Nge2 {[%clk 00:15:06]} {[%emt 00:00:03]} h5 {[%clk
00:15:11]} {[%emt 00:00:17]} 9. Bg5 {[%clk 00:14:55]} {[%emt 00:00:15]} Bxf2+
{[%clk 00:15:14]} {[%emt 00:00:03]} 10. Kd2 {[%clk 00:14:49]} {[%emt 00:00:12]}
Bc5 {[%clk 00:14:10]} {[%emt 00:01:10]} 11. Rf1 {[%clk 00:14:50]} {[%emt
00:00:02]} c6 {[%clk 00:13:55]} {[%emt 00:00:21]} 12. a3 {[%clk 00:14:45]}
{[%emt 00:00:09]} cxd5 {[%clk 00:13:50]} {[%emt 00:00:11]} 13. Nxd5 {[%clk
00:14:29]} {[%emt 00:00:20]} Nxe4+ {[%clk 00:13:45]} {[%emt 00:00:11]} 14. Bxe4
{[%clk 00:14:32]} {[%emt 00:00:01]} Qxg5+ {[%clk 00:13:49]} {[%emt 00:00:02]}
15. Kc2 {[%clk 00:14:35]} {[%emt 00:00:01]} O-O {[%clk 00:13:28]} {[%emt
00:00:27]} 16. b4 {[%clk 00:14:38]} {[%emt 00:00:02]} Bb6 {[%clk 00:13:22]}
{[%emt 00:00:12]} 17. h4 {[%clk 00:14:34]} {[%emt 00:00:08]} Qh6 {[%clk
00:12:53]} {[%emt 00:00:34]} 18. Bxg6 {[%clk 00:14:36]} {[%emt 00:00:03]} Qxg6+
{[%clk 00:12:56]} {[%emt 00:00:03]} 19. Kb3 {[%clk 00:14:29]} {[%emt 00:01:08]}
Bd8 {[%clk 00:13:49]} {[%emt 00:00:11]} 20. Nec3 {[%clk 00:14:23]} {[%emt
00:00:10]} Be6 {[%clk 00:13:32]} {[%emt 00:00:23]} 21. Qe2 {[%clk 00:14:25]}
{[%emt 00:00:02]} a6 {[%clk 00:12:39]} {[%emt 00:00:59]} 22. a4 {[%clk
00:14:07]} {[%emt 00:00:23]} Rc8 {[%clk 00:12:34]} {[%emt 00:00:10]} 23. Rad1
{[%clk 00:14:03]} {[%emt 00:00:09]} Bg4 {[%clk 00:12:34]} {[%emt 00:00:06]} 24.
Qe3 {[%clk 00:13:57]} {[%emt 00:00:09]} Bxd1+ {[%clk 00:12:34]} {[%emt
00:00:06]} 25. Rxd1 {[%clk 00:14:00]} {[%emt 00:00:01]} Qg4 {[%clk 00:12:08]}
{[%emt 00:00:32]} 26. Ne4 {[%clk 00:13:48]} {[%emt 00:00:17]} Qxd1+ {[%clk
00:12:10]} {[%emt 00:00:03]} 0-1

[Event "Open NK Rapid 2025"]
[Site "Helmond, Netherlands"]
[Date "2025.05.03"]
[Round "5.14"]
[White "Grooten, Herman"]
[Black "Frederiks, Jesse"]
[Result "1/2-1/2"]
[TimeControl "15+5"]
[WhiteFideId "1000330"]
[BlackFideId "1095790"]
[WhiteElo "2219"]
[BlackElo "1937"]

1. d4 {[%clk 00:15:09]} Nf6 {[%clk 00:15:07]} {[%emt 00:00:03]} 2. c4 {[%clk
00:15:12]} {[%emt 00:00:02]} e6 {[%clk 00:15:10]} {[%emt 00:00:03]} 3. Nf3
{[%clk 00:15:16]} {[%emt 00:00:01]} b6 {[%clk 00:15:14]} 4. g3 {[%clk
00:15:20]} {[%emt 00:00:01]} Bb7 {[%clk 00:15:13]} {[%emt 00:00:06]} 5. Bg2
{[%clk 00:15:23]} Be7 {[%clk 00:15:10]} {[%emt 00:00:08]} 6. O-O {[%clk
00:15:25]} {[%emt 00:00:03]} O-O {[%clk 00:15:10]} {[%emt 00:00:05]} 7. a3
{[%clk 00:15:26]} {[%emt 00:00:05]} d5 {[%clk 00:14:23]} {[%emt 00:00:52]} 8.
Ne5 {[%clk 00:14:58]} {[%emt 00:00:32]} Nbd7 {[%clk 00:14:00]} {[%emt
00:00:28]} 9. Nc3 {[%clk 00:14:53]} {[%emt 00:00:10]} c5 {[%clk 00:13:32]}
{[%emt 00:00:34]} 10. cxd5 {[%clk 00:14:53]} {[%emt 00:00:04]} Nxd5 {[%clk
00:12:56]} {[%emt 00:00:41]} 11. Nxd7 {[%clk 00:14:16]} {[%emt 00:00:42]} Nxc3
{[%clk 00:12:22]} {[%emt 00:00:39]} 12. bxc3 {[%clk 00:14:19]} {[%emt
00:00:03]} Qxd7 {[%clk 00:12:25]} {[%emt 00:00:01]} 13. e3 {[%clk 00:13:37]}
{[%emt 00:00:47]} Bxg2 {[%clk 00:12:18]} {[%emt 00:00:12]} 14. Kxg2 {[%clk
00:13:40]} {[%emt 00:00:02]} Rfd8 {[%clk 00:12:13]} {[%emt 00:00:11]} 15. Qf3
{[%clk 00:13:28]} {[%emt 00:00:16]} Rac8 {[%clk 00:11:55]} {[%emt 00:00:23]} 16.
a4 {[%clk 00:13:22]} {[%emt 00:00:12]} cxd4 {[%clk 00:11:44]} {[%emt 00:00:15]}
17. cxd4 {[%clk 00:13:25]} {[%emt 00:00:02]} Rc2 {[%clk 00:11:38]} {[%emt
00:00:11]} 18. Ba3 {[%clk 00:12:21]} {[%emt 00:01:10]} Bxa3 {[%clk 00:11:26]}
{[%emt 00:00:17]} 19. Rxa3 {[%clk 00:12:24]} {[%emt 00:00:02]} Rdc8 {[%clk
00:11:29]} {[%emt 00:00:02]} 20. Rfa1 {[%clk 00:11:00]} {[%emt 00:01:29]} Rb2
{[%clk 00:10:55]} {[%emt 00:00:39]} 21. R3a2 {[%clk 00:10:56]} {[%emt
00:00:08]} Rxa2 {[%clk 00:10:39]} {[%emt 00:00:21]} 22. Rxa2 {[%clk 00:11:00]}
{[%emt 00:00:02]} g6 {[%clk 00:10:36]} {[%emt 00:00:07]} 23. h4 {[%clk
00:10:46]} {[%emt 00:00:19]} Rc4 {[%clk 00:10:02]} {[%emt 00:00:40]} 24. a5
{[%clk 00:10:44]} {[%emt 00:00:07]} b5 {[%clk 00:09:58]} {[%emt 00:00:08]} 25.
a6 {[%clk 00:10:30]} {[%emt 00:00:20]} Qc6 {[%clk 00:09:36]} {[%emt 00:00:27]}
26. Rb2 {[%clk 00:10:14]} {[%emt 00:00:21]} Qxa6 {[%clk 00:09:05]} {[%emt
00:00:36]} 27. d5 {[%clk 00:09:44]} {[%emt 00:00:34]} b4 {[%clk 00:08:47]}
{[%emt 00:00:24]} 28. dxe6 {[%clk 00:09:06]} {[%emt 00:00:43]} Qxe6 {[%clk
00:08:49]} {[%emt 00:00:03]} 29. Qa8+ {[%clk 00:08:57]} {[%emt 00:00:14]} Kg7
{[%clk 00:08:11]} {[%emt 00:00:43]} 30. Qxa7 {[%clk 00:08:56]} {[%emt
00:00:06]} Qe4+ {[%clk 00:07:34]} {[%emt 00:00:42]} 31. Kh2 {[%clk 00:08:39]}
{[%emt 00:00:21]} Qe5 {[%clk 00:07:00]} {[%emt 00:00:39]} 32. Rb3 {[%clk
00:06:18]} {[%emt 00:02:27]} Rxh4+ {[%clk 00:07:01]} {[%emt 00:00:04]} 33. Kg1
{[%clk 00:06:02]} {[%emt 00:00:21]} Rc4 {[%clk 00:06:50]} {[%emt 00:00:15]} 34.
Qa2 {[%clk 00:05:45]} {[%emt 00:00:22]} Rc1+ {[%clk 00:06:45]} {[%emt
00:00:11]} 35. Kg2 {[%clk 00:05:49]} {[%emt 00:00:01]} Qe4+ {[%clk 00:06:47]}
{[%emt 00:00:03]} 36. f3 {[%clk 00:05:48]} {[%emt 00:00:06]} Rc2+ {[%clk
00:06:51]} {[%emt 00:00:01]} 37. Kg1 {[%clk 00:05:41]} {[%emt 00:00:12]} Qc4
{[%clk 00:06:23]} {[%emt 00:00:32]} 38. Qa1+ {[%clk 00:05:43]} {[%emt
00:00:04]} Kh6 {[%clk 00:06:16]} {[%emt 00:00:12]} 39. Qa8 {[%clk 00:04:40]}
{[%emt 00:01:08]} Rc1+ {[%clk 00:05:48]} {[%emt 00:00:32]} 40. Kh2 {[%clk
00:04:43]} {[%emt 00:00:02]} Qe2+ {[%clk 00:05:39]} {[%emt 00:00:14]} 41. Kh3
{[%clk 00:04:47]} {[%emt 00:00:02]} Rh1+ {[%clk 00:04:39]} {[%emt 00:01:05]} 42.
Kg4 {[%clk 00:04:51]} f5+ {[%clk 00:04:41]} {[%emt 00:00:03]} 43. Kf4 {[%clk
00:04:54]} {[%emt 00:00:02]} Qc4+ {[%clk 00:04:37]} {[%emt 00:00:09]} 44. Ke5
{[%clk 00:04:00]} {[%emt 00:00:59]} Qxb3 {[%clk 00:03:30]} {[%emt 00:01:12]} 45.
Qf8+ {[%clk 00:04:02]} {[%emt 00:00:03]} Kh5 {[%clk 00:03:34]} 46. g4 {[%clk
00:04:06]} fxg4 {[%clk 00:03:32]} {[%emt 00:00:07]} 47. fxg4 {[%clk 00:04:09]}
{[%emt 00:00:03]} Kxg4 {[%clk 00:03:33]} {[%emt 00:00:03]} 48. Qf4+ {[%clk
00:04:06]} {[%emt 00:00:09]} Kh5 {[%clk 00:02:35]} {[%emt 00:01:03]} 49. Qf3
{[%clk 00:04:08]} {[%emt 00:00:02]} Kh6 {[%clk 00:02:34]} {[%emt 00:00:07]} 50.
Qf8+ {[%clk 00:03:49]} {[%emt 00:00:24]} Kh5 {[%clk 00:02:22]} {[%emt
00:00:17]} 51. Qf3 {[%clk 00:03:51]} {[%emt 00:00:02]} Kg5 {[%clk 00:01:18]}
{[%emt 00:01:09]} 52. Qf4 {[%clk 00:03:42]} {[%emt 00:00:14]} Kh5 {[%clk
00:01:22]} {[%emt 00:00:02]} 53. Qf3 {[%clk 00:03:46]} {[%emt 00:00:01]}
1/2-1/2

[Event "Open NK Rapid 2025"]
[Site "Helmond, Netherlands"]
[Date "2025.05.03"]
[Round "5.15"]
[White "Van Batenburg, Mees"]
[Black "Meulmeester, Luuk"]
[Result "1-0"]
[TimeControl "15+5"]
[WhiteFideId "1078259"]
[BlackFideId "40111776"]
[WhiteElo "2217"]
[BlackElo "1929"]

1. e4 {[%clk 00:15:09]} {[%emt 00:00:01]} c6 {[%clk 00:15:04]} {[%emt
00:00:06]} 2. d4 {[%clk 00:15:12]} {[%emt 00:00:02]} d5 {[%clk 00:15:08]}
{[%emt 00:00:02]} 3. e5 {[%clk 00:15:15]} {[%emt 00:00:01]} c5 {[%clk
00:15:11]} {[%emt 00:00:02]} 4. dxc5 {[%clk 00:15:19]} {[%emt 00:00:01]} e6
{[%clk 00:15:15]} 5. Qh5 {[%clk 00:15:22]} {[%emt 00:00:01]} Nc6 {[%clk
00:14:47]} {[%emt 00:00:34]} 6. Nf3 {[%clk 00:15:25]} {[%emt 00:00:02]} g6
{[%clk 00:14:18]} {[%emt 00:00:34]} 7. Qh3 {[%clk 00:15:24]} {[%emt 00:00:05]}
Bxc5 {[%clk 00:14:18]} {[%emt 00:00:05]} 8. Bd3 {[%clk 00:15:12]} {[%emt
00:00:17]} Nb4 {[%clk 00:12:51]} {[%emt 00:01:33]} 9. O-O {[%clk 00:15:07]}
{[%emt 00:00:08]} Nxd3 {[%clk 00:12:54]} {[%emt 00:00:04]} 10. cxd3 {[%clk
00:15:09]} {[%emt 00:00:01]} Ne7 {[%clk 00:12:54]} {[%emt 00:00:07]} 11. Bg5
{[%clk 00:15:10]} {[%emt 00:00:03]} h5 {[%clk 00:12:26]} {[%emt 00:00:34]} 12.
Nc3 {[%clk 00:15:08]} {[%emt 00:00:07]} Bd7 {[%clk 00:12:25]} {[%emt 00:00:06]}
13. Qh4 {[%clk 00:14:11]} {[%emt 00:01:01]} Qa5 {[%clk 00:11:31]} {[%emt
00:01:00]} 14. a3 {[%clk 00:13:51]} {[%emt 00:00:26]} Nf5 {[%clk 00:11:02]}
{[%emt 00:00:34]} 15. Qf4 {[%clk 00:13:53]} {[%emt 00:00:02]} Be7 {[%clk
00:10:54]} {[%emt 00:00:13]} 16. b4 {[%clk 00:13:41]} {[%emt 00:00:17]} Qd8
{[%clk 00:10:56]} {[%emt 00:00:03]} 17. Rac1 {[%clk 00:13:15]} {[%emt
00:00:30]} Rc8 {[%clk 00:09:37]} {[%emt 00:01:23]} 18. Ne2 {[%clk 00:13:11]}
{[%emt 00:00:10]} Rxc1 {[%clk 00:09:16]} {[%emt 00:00:27]} 19. Rxc1 {[%clk
00:13:14]} {[%emt 00:00:03]} Bb5 {[%clk 00:09:03]} {[%emt 00:00:16]} 20. Bxe7
{[%clk 00:10:42]} {[%emt 00:02:37]} Qxe7 {[%clk 00:08:59]} {[%emt 00:00:08]} 21.
Rc8+ {[%emt 00:00:09]} Kd7 {[%clk 00:08:40]} {[%emt 00:00:17]} 22. Rxh8 {[%clk
00:10:46]} Bxd3 {[%clk 00:08:44]} {[%emt 00:00:07]} 23. Ned4 {[%clk 00:10:28]}
{[%emt 00:00:22]} 1-0

[Event "Open NK Rapid 2025"]
[Site "Helmond, Netherlands"]
[Date "2025.05.03"]
[Round "5.16"]
[White "Van Roon, Sjoerd"]
[Black "Kriens, Hans"]
[Result "1-0"]
[TimeControl "15+5"]
[WhiteFideId "1051075"]
[BlackFideId "1093665"]
[WhiteElo "2179"]
[BlackElo "1878"]

1. e4 {[%clk 00:15:08]} {[%emt 00:00:02]} c5 {[%clk 00:15:07]} {[%emt
00:00:04]} 2. Nf3 {[%clk 00:15:12]} {[%emt 00:00:01]} a6 {[%clk 00:15:10]}
{[%emt 00:00:01]} 3. c4 {[%clk 00:15:14]} {[%emt 00:00:04]} Nc6 {[%clk
00:15:11]} {[%emt 00:00:04]} 4. Nc3 {[%clk 00:15:08]} {[%emt 00:00:11]} d6
{[%clk 00:15:13]} {[%emt 00:00:03]} 5. d4 {[%clk 00:14:56]} {[%emt 00:00:18]}
cxd4 {[%clk 00:15:13]} {[%emt 00:00:04]} 6. Nxd4 {[%clk 00:14:58]} {[%emt
00:00:03]} e5 {[%clk 00:14:58]} {[%emt 00:00:20]} 7. Nc2 {[%clk 00:14:32]}
{[%emt 00:00:32]} Nf6 {[%clk 00:14:43]} {[%emt 00:00:20]} 8. Bd3 {[%clk
00:14:22]} {[%emt 00:00:14]} Be6 {[%clk 00:14:42]} {[%emt 00:00:06]} 9. O-O
{[%clk 00:14:21]} {[%emt 00:00:06]} Be7 {[%clk 00:14:39]} {[%emt 00:00:07]} 10.
Nd5 {[%clk 00:13:58]} {[%emt 00:00:29]} O-O {[%clk 00:14:20]} {[%emt 00:00:24]}
11. Be3 {[%clk 00:13:44]} {[%emt 00:00:19]} Bxd5 {[%clk 00:14:01]} {[%emt
00:00:24]} 12. cxd5 {[%clk 00:13:48]} Nb8 {[%clk 00:14:04]} {[%emt 00:00:01]}
13. a4 {[%clk 00:12:56]} {[%emt 00:00:57]} Nbd7 {[%clk 00:14:01]} {[%emt
00:00:08]} 14. a5 {[%clk 00:12:38]} {[%emt 00:00:23]} Rc8 {[%clk 00:14:03]}
{[%emt 00:00:04]} 15. b4 {[%clk 00:12:32]} {[%emt 00:00:11]} Ne8 {[%clk
00:13:16]} {[%emt 00:00:52]} 16. Qd2 {[%clk 00:11:11]} {[%emt 00:01:26]} Qc7
{[%clk 00:12:25]} {[%emt 00:00:56]} 17. Rfc1 {[%clk 00:10:02]} {[%emt
00:01:14]} Qc3 {[%clk 00:09:14]} {[%emt 00:03:17]} 18. Qe2 {[%clk 00:09:54]}
{[%emt 00:00:12]} Nef6 {[%clk 00:09:14]} {[%emt 00:00:05]} 19. Nd4 {[%clk
00:08:58]} {[%emt 00:01:01]} Qxb4 {[%clk 00:09:17]} {[%emt 00:00:02]} 20. Rcb1
{[%clk 00:09:00]} {[%emt 00:00:02]} Qc3 {[%clk 00:08:59]} {[%emt 00:00:24]} 21.
Nf5 {[%clk 00:09:04]} {[%emt 00:00:01]} Bd8 {[%clk 00:07:58]} {[%emt 00:01:06]}
22. Rc1 {[%clk 00:08:38]} {[%emt 00:00:31]} 1-0